[Event "Titled Tuesday Blitz August 09 Early 2022"]
[White "Hartikainen, Jarmo"]
[Black "Jiganchine, Roman"]
[WhiteFideId "503134"]
[BlackFideId "2603667"]
[WhiteElo "2132"]
[BlackElo "2289"]
[Result "0-1"]
[Round "11"]
[TimeControl "180+1"]
[Date "2022.08.09"]
[WhiteClock "0:00:16"]
[BlackClock "0:00:07"]

1. e4 {[%clk 0:03:00]}  c6 {[%clk 0:02:59]} 2. d4 {[%clk 0:03:00]}  d5 {[%clk 0:02:59]} 3. Nc3 {[%clk 0:03:00]}  dxe4 {[%clk 0:02:59]} 4. Nxe4 {[%clk 0:03:00]}  Nf6 {[%clk 0:02:59]} 5. Nxf6+ {[%clk 0:03:00]}  exf6 {[%clk 0:02:59]} 6. Bf4 {[%clk 0:03:00]}  Na6 {[%clk 0:02:58]} 7. h4 {[%clk 0:02:46]}  Nc7 {[%clk 0:02:52]} 8. h5 {[%clk 0:02:41]}  h6 {[%clk 0:02:51]} 9. Nf3 {[%clk 0:02:26]}  Nd5 {[%clk 0:02:38]} 10. Bd2 {[%clk 0:02:23]}  Bg4 {[%clk 0:02:37]} 11. Be2 {[%clk 0:02:22]}  Bd6 {[%clk 0:02:33]} 12. c4 {[%clk 0:01:39]}  Nf4 {[%clk 0:02:27]} 13. Bxf4 {[%clk 0:01:25]}  Bxf4 {[%clk 0:02:26]} 14. g3 {[%clk 0:01:23]}  Bd6 {[%clk 0:02:19]} 15. Qb3 {[%clk 0:01:20]}  O-O {[%clk 0:02:13]} 16. Kf1 {[%clk 0:01:14]}  Re8 {[%clk 0:02:09]} 17. Re1 {[%clk 0:01:07]}  Qb6 {[%clk 0:02:01]} 18. Qxb6 {[%clk 0:00:57]}  axb6 {[%clk 0:02:00]} 19. a3 {[%clk 0:00:56]}  Re4 {[%clk 0:01:30]} 20. Rh4 {[%clk 0:00:38]}  Bxf3 {[%clk 0:01:20]} 21. Bxf3 {[%clk 0:00:36]}  Rxh4 {[%clk 0:01:20]} 22. gxh4 {[%clk 0:00:37]}  Kf8 {[%clk 0:01:16]} 23. d5 {[%clk 0:00:34]}  c5 {[%clk 0:01:11]} 24. Re2 {[%clk 0:00:32]}  Ra4 {[%clk 0:01:08]} 25. Rc2 {[%clk 0:00:31]}  f5 {[%clk 0:01:00]} 26. Kg2 {[%clk 0:00:30]}  Be7 {[%clk 0:00:56]} 27. Kh3 {[%clk 0:00:28]}  Bd6 {[%clk 0:00:52]} 28. Bd1 {[%clk 0:00:25]}  Ra8 {[%clk 0:00:51]} 29. Re2 {[%clk 0:00:22]}  Re8 {[%clk 0:00:36]} 30. Rxe8+ {[%clk 0:00:22]}  Kxe8 {[%clk 0:00:36]} 31. Bc2 {[%clk 0:00:22]}  f4 {[%clk 0:00:25]} 32. b3 {[%clk 0:00:22]}  Ke7 {[%clk 0:00:23]} 33. a4 {[%clk 0:00:22]}  Kf6 {[%clk 0:00:23]} 34. Kg4 {[%clk 0:00:23]}  Ke5 {[%clk 0:00:23]} 35. Kf3 {[%clk 0:00:20]}  Kd4 {[%clk 0:00:23]} 36. Ke2 {[%clk 0:00:20]}  Kc3 {[%clk 0:00:23]} 37. Kd1 {[%clk 0:00:20]}  Be7 {[%clk 0:00:22]} 38. Kc1 {[%clk 0:00:20]}  Bxh4 {[%clk 0:00:21]} 39. f3 {[%clk 0:00:21]}  Be7 {[%clk 0:00:20]} 40. Bd1 {[%clk 0:00:21]}  Kd3 {[%clk 0:00:19]} 41. Bc2+ {[%clk 0:00:21]}  Ke3 {[%clk 0:00:19]} 42. Bd1 {[%clk 0:00:21]}  Bd6 {[%clk 0:00:18]} 43. Kc2 {[%clk 0:00:20]}  g6 {[%clk 0:00:16]} 44. Kc1 {[%clk 0:00:21]}  gxh5 {[%clk 0:00:15]} 45. Kc2 {[%clk 0:00:21]}  h4 {[%clk 0:00:16]} 46. Kc1 {[%clk 0:00:19]}  h3 {[%clk 0:00:16]} 47. a5 {[%clk 0:00:18]}  bxa5 {[%clk 0:00:15]} 48. Kc2 {[%clk 0:00:18]}  h2 {[%clk 0:00:15]} 49. Kc1 {[%clk 0:00:17]}  h1=Q {[%clk 0:00:13]} 50. b4 {[%clk 0:00:18]}  axb4 {[%clk 0:00:11]} 51. Kc2 {[%clk 0:00:18]}  Qe1 {[%clk 0:00:09]} 52. Kc1 {[%clk 0:00:18]}  Qc3+ {[%clk 0:00:09]} 53. Bc2 {[%clk 0:00:18]}  Qd2+ {[%clk 0:00:08]} 54. Kb2 {[%clk 0:00:17]}  Be5+ {[%clk 0:00:08]} 55. Kb1 {[%clk 0:00:16]}  Qe1+ {[%clk 0:00:07]} 56. Ka2 {[%clk 0:00:15]}  Qa1+ {[%clk 0:00:07]} 57. Kb3 {[%clk 0:00:16]}  Qa3# {[%clk 0:00:07]} 0-1


[Site "https://www.chess.com"]

[Event "Titled Tuesday Blitz August 09 Early 2022"]
[White "Ismayil, Malak"]
[Black "Solon, Nathan"]
[WhiteFideId "13412604"]
[BlackFideId "2017229"]
[WhiteElo "1879"]
[BlackElo "2625"]
[Result "0-1"]
[Round "11"]
[TimeControl "180+1"]
[Date "2022.08.09"]
[WhiteClock "0:01:06"]
[BlackClock "0:01:46"]

1. e4 {[%clk 0:03:00]}  c6 {[%clk 0:03:00]} 2. d4 {[%clk 0:03:00]}  d5 {[%clk 0:03:00]} 3. Nc3 {[%clk 0:03:00]}  dxe4 {[%clk 0:03:01]} 4. Nxe4 {[%clk 0:03:01]}  Nf6 {[%clk 0:03:01]} 5. Nxf6+ {[%clk 0:03:00]}  exf6 {[%clk 0:03:02]} 6. c3 {[%clk 0:02:57]}  Bd6 {[%clk 0:03:02]} 7. Bd3 {[%clk 0:02:58]}  O-O {[%clk 0:03:02]} 8. Ne2 {[%clk 0:02:58]}  Re8 {[%clk 0:03:02]} 9. Be3 {[%clk 0:02:55]}  Nd7 {[%clk 0:02:59]} 10. Qc2 {[%clk 0:02:55]}  Nf8 {[%clk 0:02:56]} 11. O-O-O {[%clk 0:02:54]}  Be6 {[%clk 0:02:55]} 12. Kb1 {[%clk 0:02:53]}  b5 {[%clk 0:02:53]} 13. Nf4 {[%clk 0:02:47]}  Bxf4 {[%clk 0:02:52]} 14. Bxf4 {[%clk 0:02:46]}  Qd5 {[%clk 0:02:49]} 15. b3 {[%clk 0:02:43]}  a5 {[%clk 0:02:46]} 16. f3 {[%clk 0:02:40]}  a4 {[%clk 0:02:46]} 17. b4 {[%clk 0:02:39]}  g6 {[%clk 0:02:37]} 18. h4 {[%clk 0:02:28]}  h5 {[%clk 0:02:31]} 19. Rhg1 {[%clk 0:02:13]}  Bf5 {[%clk 0:02:05]} 20. Bxf5 {[%clk 0:02:07]}  Qxf5 {[%clk 0:02:06]} 21. Qxf5 {[%clk 0:02:04]}  gxf5 {[%clk 0:02:06]} 22. Rge1 {[%clk 0:02:01]}  Ne6 {[%clk 0:01:59]} 23. Bd6 {[%clk 0:01:57]}  Rad8 {[%clk 0:01:57]} 24. Bg3 {[%clk 0:01:52]}  f4 {[%clk 0:01:54]} 25. Bf2 {[%clk 0:01:51]}  Nc7 {[%clk 0:01:54]} 26. Kc2 {[%clk 0:01:48]}  Nd5 {[%clk 0:01:54]} 27. Kd3 {[%clk 0:01:46]}  Kh7 {[%clk 0:01:51]} 28. Re2 {[%clk 0:01:04]}  Rxe2 {[%clk 0:01:47]} 29. Kxe2 {[%clk 0:01:05]}  Nxc3+ {[%clk 0:01:47]} 30. Kd2 {[%clk 0:01:05]}  Nxd1 {[%clk 0:01:47]} 31. Kxd1 {[%clk 0:01:06]}  Rg8 {[%clk 0:01:46]} 0-1


[Site "https://www.chess.com"]

[Event "Titled Tuesday Blitz August 09 Early 2022"]
[White "Kazancev, Valerij M"]
[Black "Bristy, Mukherjee"]
[WhiteFideId "4179609"]
[BlackFideId "25077325"]
[WhiteElo "2541"]
[BlackElo "1661"]
[Result "0-1"]
[Round "11"]
[TimeControl "180+1"]
[Date "2022.08.09"]
[WhiteClock "0:00:01"]
[BlackClock "0:00:05"]

1. c4 {[%clk 0:03:00]}  f5 {[%clk 0:02:58]} 2. Nc3 {[%clk 0:03:00]}  Nf6 {[%clk 0:02:58]} 3. g3 {[%clk 0:03:01]}  e5 {[%clk 0:02:58]} 4. Bg2 {[%clk 0:03:01]}  Be7 {[%clk 0:02:55]} 5. e3 {[%clk 0:03:02]}  O-O {[%clk 0:02:55]} 6. Nge2 {[%clk 0:03:02]}  d6 {[%clk 0:02:54]} 7. O-O {[%clk 0:03:03]}  Qe8 {[%clk 0:02:52]} 8. h3 {[%clk 0:02:55]}  Qh5 {[%clk 0:02:49]} 9. f4 {[%clk 0:02:55]}  Nc6 {[%clk 0:02:46]} 10. a3 {[%clk 0:02:50]}  a5 {[%clk 0:02:44]} 11. d3 {[%clk 0:02:48]}  Be6 {[%clk 0:02:39]} 12. Nd5 {[%clk 0:02:47]}  Bxd5 {[%clk 0:02:32]} 13. cxd5 {[%clk 0:02:48]}  Nd8 {[%clk 0:02:31]} 14. Rf2 {[%clk 0:02:45]}  Qg6 {[%clk 0:02:29]} 15. Kh2 {[%clk 0:02:39]}  Qh6 {[%clk 0:02:24]} 16. Kg1 {[%clk 0:02:37]}  Qg6 {[%clk 0:02:23]} 17. Qc2 {[%clk 0:01:59]}  Rc8 {[%clk 0:02:20]} 18. b4 {[%clk 0:01:59]}  axb4 {[%clk 0:02:04]} 19. axb4 {[%clk 0:01:59]}  Nf7 {[%clk 0:02:03]} 20. Ra7 {[%clk 0:01:58]}  Nd8 {[%clk 0:01:52]} 21. Bb2 {[%clk 0:01:50]}  Nd7 {[%clk 0:01:44]} 22. Qa4 {[%clk 0:01:33]}  Nb6 {[%clk 0:01:38]} 23. Qb3 {[%clk 0:01:32]}  exf4 {[%clk 0:01:19]} 24. gxf4 {[%clk 0:01:22]}  Bh4 {[%clk 0:01:15]} 25. Rf1 {[%clk 0:01:19]}  Re8 {[%clk 0:01:14]} 26. e4 {[%clk 0:01:15]}  fxe4 {[%clk 0:01:11]} 27. f5 {[%clk 0:01:02]}  Qg5 {[%clk 0:01:05]} 28. Nf4 {[%clk 0:00:47]}  exd3 {[%clk 0:00:47]} 29. Qxd3 {[%clk 0:00:46]}  Nd7 {[%clk 0:00:36]} 30. Ne6 {[%clk 0:00:42]}  Nxe6 {[%clk 0:00:31]} 31. dxe6 {[%clk 0:00:43]}  Ne5 {[%clk 0:00:30]} 32. Bxe5 {[%clk 0:00:42]}  dxe5 {[%clk 0:00:30]} 33. Rxb7 {[%clk 0:00:33]}  Rcd8 {[%clk 0:00:28]} 34. Qe4 {[%clk 0:00:33]}  Rd2 {[%clk 0:00:15]} 35. Rxc7 {[%clk 0:00:32]}  h6 {[%clk 0:00:14]} 36. Qb7 {[%clk 0:00:24]}  Bg3 {[%clk 0:00:08]} 37. Kh1 {[%clk 0:00:18]}  Bf4 {[%clk 0:00:08]} 38. f6 {[%clk 0:00:07]}  Qxf6 {[%clk 0:00:07]} 39. Rf7 {[%clk 0:00:05]}  Qg5 {[%clk 0:00:07]} 40. e7 {[%clk 0:00:05]}  Kxf7 {[%clk 0:00:06]} 41. Bd5+ {[%clk 0:00:04]}  Kg6 {[%clk 0:00:06]} 42. Be4+ {[%clk 0:00:01]}  Kf7 {[%clk 0:00:05]} 0-1


[Site "https://www.chess.com"]

[Event "Titled Tuesday Blitz August 09 Early 2022"]
[White "Lakshmi C"]
[Black "Locci, Damiano"]
[WhiteFideId "25035347"]
[BlackFideId "819751"]
[WhiteElo "1775"]
[BlackElo "2322"]
[Result "1-0"]
[Round "11"]
[TimeControl "180+1"]
[Date "2022.08.09"]
[WhiteClock "0:00:10"]
[BlackClock "0:02:00"]

1. Nf3 {[%clk 0:02:57]}  d5 {[%clk 0:03:00]} 2. g3 {[%clk 0:02:53]}  Nc6 {[%clk 0:02:58]} 3. d4 {[%clk 0:02:47]}  Bg4 {[%clk 0:02:54]} 4. Bg2 {[%clk 0:02:45]}  Bxf3 {[%clk 0:02:51]} 5. Bxf3 {[%clk 0:02:44]}  Nf6 {[%clk 0:02:52]} 6. O-O {[%clk 0:02:44]}  e5 {[%clk 0:02:52]} 7. dxe5 {[%clk 0:02:40]}  Nxe5 {[%clk 0:02:53]} 8. Bg2 {[%clk 0:02:41]}  h5 {[%clk 0:02:46]} 9. Bf4 {[%clk 0:02:34]}  Ng6 {[%clk 0:02:42]} 10. Bg5 {[%clk 0:02:26]}  h4 {[%clk 0:02:40]} 11. Bxf6 {[%clk 0:02:26]}  Qxf6 {[%clk 0:02:40]} 12. Qxd5 {[%clk 0:02:25]}  hxg3 {[%clk 0:02:37]} 13. fxg3 {[%clk 0:02:21]}  Qb6+ {[%clk 0:02:37]} 14. Kh1 {[%clk 0:02:18]}  f6 {[%clk 0:02:16]} 15. Qxb7 {[%clk 0:01:22]}  Rb8 {[%clk 0:02:16]} 16. Qc6+ {[%clk 0:00:59]}  Kd8 {[%clk 0:02:14]} 17. b3 {[%clk 0:00:18]}  Bd6 {[%clk 0:02:13]} 18. Qf3 {[%clk 0:00:13]}  Qd4 {[%clk 0:02:11]} 19. c3 {[%clk 0:00:13]}  Rxh2+ {[%clk 0:02:08]} 20. Kxh2 {[%clk 0:00:11]}  Qh4+ {[%clk 0:02:08]} 21. Kg1 {[%clk 0:00:11]}  Bxg3 {[%clk 0:02:08]} 22. Rd1+ {[%clk 0:00:10]}  Kc8 {[%clk 0:02:00]} 23. Qf5# {[%clk 0:00:10]} 1-0


[Site "https://www.chess.com"]

[Event "Titled Tuesday Blitz August 09 Early 2022"]
[White "Lehtosaari, Mauri"]
[Black "Fernandez Siles, Luis"]
[WhiteFideId "501999"]
[BlackFideId "2209420"]
[WhiteElo "2476"]
[BlackElo "2211"]
[Result "1/2-1/2"]
[Round "11"]
[TimeControl "180+1"]
[Date "2022.08.09"]
[WhiteClock "0:00:06"]
[BlackClock "0:00:09"]

1. d4 {[%clk 0:03:00]}  Nf6 {[%clk 0:02:59]} 2. Nf3 {[%clk 0:03:00]}  g6 {[%clk 0:02:58]} 3. Bg5 {[%clk 0:03:00]}  Bg7 {[%clk 0:02:57]} 4. Nbd2 {[%clk 0:02:59]}  d5 {[%clk 0:02:57]} 5. e3 {[%clk 0:02:58]}  O-O {[%clk 0:02:57]} 6. Be2 {[%clk 0:02:59]}  b6 {[%clk 0:02:57]} 7. O-O {[%clk 0:02:58]}  c5 {[%clk 0:02:57]} 8. c3 {[%clk 0:02:57]}  Nc6 {[%clk 0:02:57]} 9. a4 {[%clk 0:02:57]}  h6 {[%clk 0:02:49]} 10. Bh4 {[%clk 0:02:44]}  Re8 {[%clk 0:02:40]} 11. Bb5 {[%clk 0:02:40]}  Bd7 {[%clk 0:02:38]} 12. Bg3 {[%clk 0:02:32]}  a6 {[%clk 0:02:35]} 13. Bd3 {[%clk 0:02:30]}  Bf5 {[%clk 0:02:22]} 14. Bxf5 {[%clk 0:02:21]}  gxf5 {[%clk 0:02:22]} 15. Ne5 {[%clk 0:02:17]}  Rc8 {[%clk 0:02:09]} 16. Qe2 {[%clk 0:02:13]}  c4 {[%clk 0:02:04]} 17. Rfb1 {[%clk 0:02:12]}  Ne4 {[%clk 0:01:59]} 18. Ndf3 {[%clk 0:02:02]}  Na5 {[%clk 0:01:52]} 19. Ne1 {[%clk 0:01:54]}  Nb3 {[%clk 0:01:24]} 20. Ra3 {[%clk 0:01:51]}  Nxg3 {[%clk 0:01:15]} 21. hxg3 {[%clk 0:01:51]}  Bxe5 {[%clk 0:01:15]} 22. dxe5 {[%clk 0:01:52]}  e6 {[%clk 0:01:10]} 23. Nf3 {[%clk 0:01:48]}  Qc7 {[%clk 0:00:54]} 24. Rd1 {[%clk 0:01:38]}  Ra8 {[%clk 0:00:52]} 25. Qc2 {[%clk 0:01:18]}  b5 {[%clk 0:00:49]} 26. axb5 {[%clk 0:01:10]}  axb5 {[%clk 0:00:50]} 27. Rxa8 {[%clk 0:01:10]}  Rxa8 {[%clk 0:00:51]} 28. Nd4 {[%clk 0:01:03]}  Nxd4 {[%clk 0:00:43]} 29. exd4 {[%clk 0:01:04]}  Ra2 {[%clk 0:00:40]} 30. Rb1 {[%clk 0:01:00]}  Qa5 {[%clk 0:00:39]} 31. Qc1 {[%clk 0:00:55]}  Kg7 {[%clk 0:00:39]} 32. Kh2 {[%clk 0:00:52]}  Qa4 {[%clk 0:00:38]} 33. Qf4 {[%clk 0:00:50]}  Qc2 {[%clk 0:00:35]} 34. Rf1 {[%clk 0:00:46]}  Qxb2 {[%clk 0:00:29]} 35. Qh4 {[%clk 0:00:45]}  Qxc3 {[%clk 0:00:16]} 36. Qf6+ {[%clk 0:00:44]}  Kf8 {[%clk 0:00:17]} 37. Qd8+ {[%clk 0:00:37]}  Kg7 {[%clk 0:00:17]} 38. Qf6+ {[%clk 0:00:37]}  Kg8 {[%clk 0:00:17]} 39. Qxh6 {[%clk 0:00:31]}  Qxd4 {[%clk 0:00:16]} 40. Qg5+ {[%clk 0:00:30]}  Kf8 {[%clk 0:00:16]} 41. Qd8+ {[%clk 0:00:28]}  Kg7 {[%clk 0:00:15]} 42. Qg5+ {[%clk 0:00:25]}  Kh7 {[%clk 0:00:16]} 43. Rh1 {[%clk 0:00:08]}  Ra1 {[%clk 0:00:09]} 44. Qh5+ {[%clk 0:00:07]}  Kg7 {[%clk 0:00:08]} 45. Qg5+ {[%clk 0:00:07]}  Kh7 {[%clk 0:00:09]} 46. Qh5+ {[%clk 0:00:05]}  Kg7 {[%clk 0:00:09]} 47. Qg5+ {[%clk 0:00:06]}  Kh7 {[%clk 0:00:09]} 1/2-1/2


[Site "https://www.chess.com"]

[Event "Titled Tuesday Blitz August 09 Early 2022"]
[White "Madaminov, Mukhiddin"]
[Black "Mardov, Dimitar"]
[WhiteFideId "14210703"]
[BlackFideId "30919495"]
[WhiteElo "2011"]
[BlackElo "2185"]
[Result "1-0"]
[Round "11"]
[TimeControl "180+1"]
[Date "2022.08.09"]
[WhiteClock "0:00:04"]
[BlackClock "0:00:02"]

1. d4 {[%clk 0:03:00]}  Nf6 {[%clk 0:02:58]} 2. Nc3 {[%clk 0:03:01]}  d5 {[%clk 0:02:58]} 3. Bf4 {[%clk 0:03:01]}  Bf5 {[%clk 0:02:53]} 4. f3 {[%clk 0:03:01]}  e6 {[%clk 0:02:52]} 5. g4 {[%clk 0:03:01]}  Bg6 {[%clk 0:02:50]} 6. h4 {[%clk 0:03:02]}  h6 {[%clk 0:02:34]} 7. e3 {[%clk 0:02:58]}  Bd6 {[%clk 0:02:27]} 8. Nh3 {[%clk 0:02:58]}  a6 {[%clk 0:02:08]} 9. Bd3 {[%clk 0:02:58]}  Bxd3 {[%clk 0:01:59]} 10. Qxd3 {[%clk 0:02:59]}  c5 {[%clk 0:01:58]} 11. O-O-O {[%clk 0:02:56]}  Nc6 {[%clk 0:01:56]} 12. g5 {[%clk 0:02:50]}  Nh5 {[%clk 0:01:52]} 13. Bxd6 {[%clk 0:02:24]}  Qxd6 {[%clk 0:01:53]} 14. g6 {[%clk 0:02:22]}  f5 {[%clk 0:01:37]} 15. dxc5 {[%clk 0:02:12]}  Qxc5 {[%clk 0:01:37]} 16. Nf4 {[%clk 0:02:09]}  Nxf4 {[%clk 0:01:36]} 17. exf4 {[%clk 0:02:10]}  O-O {[%clk 0:01:35]} 18. Rhe1 {[%clk 0:02:04]}  Rfe8 {[%clk 0:01:34]} 19. Ne2 {[%clk 0:02:01]}  Rac8 {[%clk 0:01:32]} 20. a3 {[%clk 0:01:55]}  b5 {[%clk 0:01:30]} 21. Kb1 {[%clk 0:01:48]}  b4 {[%clk 0:01:29]} 22. a4 {[%clk 0:01:40]}  Qa5 {[%clk 0:01:25]} 23. b3 {[%clk 0:01:39]}  Qc5 {[%clk 0:01:24]} 24. h5 {[%clk 0:01:38]}  a5 {[%clk 0:01:21]} 25. Rd2 {[%clk 0:01:37]}  Kf8 {[%clk 0:01:19]} 26. Nd4 {[%clk 0:01:36]}  Nxd4 {[%clk 0:01:18]} 27. Qxd4 {[%clk 0:01:36]}  Qxd4 {[%clk 0:01:19]} 28. Rxd4 {[%clk 0:01:36]}  Rc3 {[%clk 0:01:19]} 29. Rd3 {[%clk 0:01:16]}  Rxd3 {[%clk 0:01:09]} 30. cxd3 {[%clk 0:01:17]}  Rc8 {[%clk 0:00:51]} 31. Rxe6 {[%clk 0:01:15]}  Rc3 {[%clk 0:00:46]} 32. Re5 {[%clk 0:01:15]}  Rxd3 {[%clk 0:00:38]} 33. Rxf5+ {[%clk 0:01:13]}  Kg8 {[%clk 0:00:39]} 34. Kc2 {[%clk 0:01:11]}  Rc3+ {[%clk 0:00:35]} 35. Kb2 {[%clk 0:01:12]}  Rd3 {[%clk 0:00:35]} 36. Re5 {[%clk 0:01:07]}  Kf8 {[%clk 0:00:35]} 37. f5 {[%clk 0:01:08]}  Rd2+ {[%clk 0:00:32]} 38. Kc1 {[%clk 0:01:08]}  Rd3 {[%clk 0:00:33]} 39. Kc2 {[%clk 0:01:08]}  Rc3+ {[%clk 0:00:33]} 40. Kb2 {[%clk 0:01:09]}  Rd3 {[%clk 0:00:34]} 41. f4 {[%clk 0:01:09]}  Rd2+ {[%clk 0:00:32]} 42. Kc1 {[%clk 0:01:09]}  Rd3 {[%clk 0:00:33]} 43. Kc2 {[%clk 0:01:10]}  Rc3+ {[%clk 0:00:34]} 44. Kb2 {[%clk 0:01:10]}  Rd3 {[%clk 0:00:34]} 45. f6 {[%clk 0:01:07]}  gxf6 {[%clk 0:00:34]} 46. Re6 {[%clk 0:01:08]}  Kg7 {[%clk 0:00:31]} 47. Re7+ {[%clk 0:01:07]}  Kg8 {[%clk 0:00:31]} 48. Rf7 {[%clk 0:01:05]}  Rh3 {[%clk 0:00:31]} 49. Rxf6 {[%clk 0:01:04]}  Rh2+ {[%clk 0:00:31]} 50. Kc1 {[%clk 0:01:04]}  Rxh5 {[%clk 0:00:32]} 51. f5 {[%clk 0:01:04]}  Rg5 {[%clk 0:00:30]} 52. Kd2 {[%clk 0:00:47]}  h5 {[%clk 0:00:30]} 53. Ke3 {[%clk 0:00:44]}  h4 {[%clk 0:00:25]} 54. Kf4 {[%clk 0:00:44]}  Rg1 {[%clk 0:00:17]} 55. Rf7 {[%clk 0:00:40]}  d4 {[%clk 0:00:18]} 56. Rh7 {[%clk 0:00:38]}  d3 {[%clk 0:00:17]} 57. Ke3 {[%clk 0:00:35]}  Rg3+ {[%clk 0:00:16]} 58. Kd2 {[%clk 0:00:33]}  Rf3 {[%clk 0:00:13]} 59. Rxh4 {[%clk 0:00:29]}  Rxf5 {[%clk 0:00:13]} 60. Rh3 {[%clk 0:00:26]}  Kg7 {[%clk 0:00:13]} 61. Rg3 {[%clk 0:00:25]}  Rc5 {[%clk 0:00:10]} 62. Rxd3 {[%clk 0:00:15]}  Kxg6 {[%clk 0:00:10]} 63. Ke3 {[%clk 0:00:15]}  Kf5 {[%clk 0:00:09]} 64. Kd4 {[%clk 0:00:15]}  Rc1 {[%clk 0:00:08]} 65. Kd5 {[%clk 0:00:14]}  Rc3 {[%clk 0:00:06]} 66. Kd4 {[%clk 0:00:14]}  Rc1 {[%clk 0:00:03]} 67. Re3 {[%clk 0:00:14]}  Kf6 {[%clk 0:00:02]} 68. Kd5 {[%clk 0:00:03]}  Rc3 {[%clk 0:00:02]} 69. Re6+ {[%clk 0:00:03]}  Kf5 {[%clk 0:00:02]} 70. Ra6 {[%clk 0:00:02]}  Rxb3 {[%clk 0:00:02]} 71. Rxa5 {[%clk 0:00:03]}  Rb1 {[%clk 0:00:03]} 72. Rb5 {[%clk 0:00:02]}  b3 {[%clk 0:00:03]} 73. a5 {[%clk 0:00:02]}  b2 {[%clk 0:00:02]} 74. Kc6+ {[%clk 0:00:03]}  Ke6 {[%clk 0:00:02]} 75. Kb6 {[%clk 0:00:03]}  Kd6 {[%clk 0:00:02]} 76. a6 {[%clk 0:00:04]}  Kd7 {[%clk 0:00:02]} 77. a7 {[%clk 0:00:04]}  Ra1 {[%clk 0:00:01]} 78. Rxb2 {[%clk 0:00:04]}  Kd6 {[%clk 0:00:02]} 79. Kb7 {[%clk 0:00:03]}  Rh1 {[%clk 0:00:01]} 80. a8=Q {[%clk 0:00:03]}  Rh7+ {[%clk 0:00:02]} 81. Ka6 {[%clk 0:00:04]} 1-0


[Site "https://www.chess.com"]

[Event "Titled Tuesday Blitz August 09 Early 2022"]
[White "Martin Alvarez, Inigo"]
[Black "D`Arruda, Ricardo D."]
[WhiteFideId "2259354"]
[BlackFideId "100692"]
[WhiteElo "2321"]
[BlackElo "2467"]
[Result "1-0"]
[Round "11"]
[TimeControl "180+1"]
[Date "2022.08.09"]
[WhiteClock "0:00:13"]
[BlackClock "0:00:14"]

1. e4 {[%clk 0:03:00]}  c5 {[%clk 0:02:58]} 2. Nf3 {[%clk 0:02:58]}  Nc6 {[%clk 0:02:57]} 3. d3 {[%clk 0:02:54]}  e6 {[%clk 0:02:56]} 4. g3 {[%clk 0:02:54]}  Nf6 {[%clk 0:02:55]} 5. Bg2 {[%clk 0:02:54]}  d5 {[%clk 0:02:55]} 6. Nbd2 {[%clk 0:02:53]}  Be7 {[%clk 0:02:55]} 7. O-O {[%clk 0:02:52]}  O-O {[%clk 0:02:55]} 8. Re1 {[%clk 0:02:42]}  dxe4 {[%clk 0:02:53]} 9. dxe4 {[%clk 0:02:40]}  b6 {[%clk 0:02:53]} 10. c3 {[%clk 0:02:40]}  Bb7 {[%clk 0:02:52]} 11. Qc2 {[%clk 0:02:40]}  Qc7 {[%clk 0:02:49]} 12. Nc4 {[%clk 0:02:39]}  Rfd8 {[%clk 0:02:28]} 13. Bf4 {[%clk 0:02:38]}  Qd7 {[%clk 0:02:27]} 14. Nce5 {[%clk 0:02:33]}  Nxe5 {[%clk 0:02:26]} 15. Nxe5 {[%clk 0:02:32]}  Qe8 {[%clk 0:02:21]} 16. Nc4 {[%clk 0:02:25]}  Rd7 {[%clk 0:02:10]} 17. Rad1 {[%clk 0:02:11]}  Rad8 {[%clk 0:02:09]} 18. Rxd7 {[%clk 0:02:10]}  Qxd7 {[%clk 0:02:09]} 19. Ne5 {[%clk 0:02:04]}  Qe8 {[%clk 0:01:57]} 20. Bf1 {[%clk 0:02:00]}  h6 {[%clk 0:01:51]} 21. a4 {[%clk 0:01:57]}  a6 {[%clk 0:01:18]} 22. f3 {[%clk 0:01:52]}  Bd6 {[%clk 0:01:15]} 23. Nd3 {[%clk 0:01:39]}  Bxf4 {[%clk 0:01:14]} 24. Nxf4 {[%clk 0:01:39]}  Qd7 {[%clk 0:01:11]} 25. Qb3 {[%clk 0:01:32]}  Qc6 {[%clk 0:01:06]} 26. Bc4 {[%clk 0:01:23]}  Rd2 {[%clk 0:01:03]} 27. Rd1 {[%clk 0:01:12]}  Rxd1+ {[%clk 0:00:59]} 28. Qxd1 {[%clk 0:01:12]}  Qc7 {[%clk 0:00:52]} 29. Kf2 {[%clk 0:00:55]}  Kf8 {[%clk 0:00:52]} 30. Bxe6 {[%clk 0:00:53]}  g5 {[%clk 0:00:40]} 31. Nd5 {[%clk 0:00:50]}  Qd8 {[%clk 0:00:29]} 32. Bf5 {[%clk 0:00:42]}  Nxd5 {[%clk 0:00:29]} 33. exd5 {[%clk 0:00:41]}  Qxd5 {[%clk 0:00:30]} 34. Qxd5 {[%clk 0:00:41]}  Bxd5 {[%clk 0:00:31]} 35. a5 {[%clk 0:00:31]}  bxa5 {[%clk 0:00:30]} 36. Bc8 {[%clk 0:00:27]}  Bc4 {[%clk 0:00:29]} 37. Ke3 {[%clk 0:00:25]}  Ke7 {[%clk 0:00:27]} 38. f4 {[%clk 0:00:24]}  f6 {[%clk 0:00:26]} 39. fxg5 {[%clk 0:00:24]}  fxg5 {[%clk 0:00:25]} 40. h4 {[%clk 0:00:25]}  Kf6 {[%clk 0:00:23]} 41. Ke4 {[%clk 0:00:20]}  gxh4 {[%clk 0:00:20]} 42. gxh4 {[%clk 0:00:20]}  Kg6 {[%clk 0:00:21]} 43. Bg4 {[%clk 0:00:18]}  Kf6 {[%clk 0:00:16]} 44. Bf3 {[%clk 0:00:16]}  Be6 {[%clk 0:00:15]} 45. Be2 {[%clk 0:00:16]}  Bc8 {[%clk 0:00:14]} 46. Kd5 {[%clk 0:00:16]}  Kf5 {[%clk 0:00:14]} 47. Kxc5 {[%clk 0:00:16]}  Kf4 {[%clk 0:00:14]} 48. Kb6 {[%clk 0:00:15]}  Ke3 {[%clk 0:00:13]} 49. Bxa6 {[%clk 0:00:15]}  Bf5 {[%clk 0:00:13]} 50. Kxa5 {[%clk 0:00:14]}  Kd2 {[%clk 0:00:13]} 51. c4 {[%clk 0:00:13]}  Kc2 {[%clk 0:00:13]} 52. b4 {[%clk 0:00:13]}  Kc3 {[%clk 0:00:14]} 53. c5 {[%clk 0:00:13]}  Kd4 {[%clk 0:00:14]} 54. c6 {[%clk 0:00:13]} 1-0


[Site "https://www.chess.com"]

[Event "Titled Tuesday Blitz August 09 Early 2022"]
[White "McConnell, Griffin"]
[Black "Namitbir Singh Walia"]
[WhiteFideId "30942551"]
[BlackFideId "35071068"]
[WhiteElo "2330"]
[BlackElo "1664"]
[Result "1-0"]
[Round "11"]
[TimeControl "180+1"]
[Date "2022.08.09"]
[WhiteClock "0:00:19"]
[BlackClock "0:00:01"]

1. e4 {[%clk 0:03:00]}  c5 {[%clk 0:02:59]} 2. Nc3 {[%clk 0:03:00]}  Nc6 {[%clk 0:02:59]} 3. Bb5 {[%clk 0:03:00]}  Nd4 {[%clk 0:02:59]} 4. Bc4 {[%clk 0:03:00]}  g6 {[%clk 0:02:57]} 5. Nf3 {[%clk 0:03:00]}  Bg7 {[%clk 0:02:56]} 6. Nxd4 {[%clk 0:03:01]}  cxd4 {[%clk 0:02:56]} 7. Qf3 {[%clk 0:03:01]}  e6 {[%clk 0:02:53]} 8. Nb5 {[%clk 0:03:01]}  d6 {[%clk 0:02:48]} 9. Qa3 {[%clk 0:02:55]}  Be5 {[%clk 0:02:40]} 10. d3 {[%clk 0:02:45]}  d5 {[%clk 0:02:18]} 11. f4 {[%clk 0:02:32]}  Bb8 {[%clk 0:02:15]} 12. Bb3 {[%clk 0:02:05]}  Qb6 {[%clk 0:01:49]} 13. e5 {[%clk 0:01:58]}  Bd7 {[%clk 0:01:41]} 14. Nd6+ {[%clk 0:01:55]}  Bxd6 {[%clk 0:01:42]} 15. exd6 {[%clk 0:01:54]}  Nf6 {[%clk 0:01:36]} 16. Bd2 {[%clk 0:01:51]}  O-O {[%clk 0:01:34]} 17. O-O {[%clk 0:01:46]}  a5 {[%clk 0:01:29]} 18. f5 {[%clk 0:01:32]}  a4 {[%clk 0:01:26]} 19. fxe6 {[%clk 0:01:04]}  fxe6 {[%clk 0:01:26]} 20. Bh6 {[%clk 0:00:56]}  axb3 {[%clk 0:01:25]} 21. Rxf6 {[%clk 0:00:47]}  Rfc8 {[%clk 0:00:36]} 22. Raf1 {[%clk 0:00:35]}  Qa6 {[%clk 0:00:05]} 23. Qxb3 {[%clk 0:00:30]}  Ba4 {[%clk 0:00:03]} 24. Qb4 {[%clk 0:00:23]}  Bxc2 {[%clk 0:00:03]} 25. d7 {[%clk 0:00:19]}  Rd8 {[%clk 0:00:01]} 26. Rf8+ {[%clk 0:00:19]} 1-0


[Site "https://www.chess.com"]